lending/lending_fUSD_20250621
["ID","MTS","AMOUNT","RATE_DAILY","PERIOD"]
[366880721,1750545032918,-249.56,0.00021451,2]
[366880722,1750545032929,-300.43,0.00021451,2]
[366880723,1750545032939,-249.01,0.00021451,2]
[366880724,1750545032949,-249.93,0.00021451,2]
[366880725,1750545032959,-302.46,0.00021451,2]
[366880726,1750545032969,-248.79,0.00021451,2]
[366880727,1750545032979,-248.68,0.00021451,2]
[366880728,1750545032989,-305.55,0.00021451,2]
[366880729,1750545032999,-251.06,0.00021451,2]
[366880730,1750545033009,-247.96,0.00021451,2]
[366880731,1750545033019,-301.71,0.00021451,2]
[366880732,1750545033029,-247.14,0.00021451,2]
[366880733,1750545033043,-248.5,0.00021451,2]
[366880734,1750545033053,-302.05,0.00021451,2]
[366880735,1750545033064,-251.86,0.00021451,2]
[366880736,1750545033074,-251.48,0.00021451,2]
[366880737,1750545033084,-304.36,0.00021451,2]
[366880738,1750545033095,-245.81,0.00021451,2]
[366880739,1750545033105,-250.49,0.00021451,2]
[366880740,1750545033115,-301.19,0.00021451,2]
[366880741,1750545033128,-303.29,0.00021451,2]
[366880742,1750545033139,-301.22,0.00021451,2]
[366880743,1750545033148,-248.49,0.00021451,2]
[366880744,1750545033158,-304.13,0.00021451,2]
[366880745,1750545033169,-250.87,0.00021451,2]
[366880746,1750545033179,-252.34,0.00021451,2]
[366880747,1750545033189,-300.58,0.00021451,2]
[366880748,1750545033199,-1000.0,0.00021451,2]
[366880749,1750545033211,-202.0,0.00021856,2]
[366880750,1750545033221,-157.3,0.00021918,2]
[366880751,1750545033231,-160.6396813,0.00022,2]
[366880752,1750545033241,-150.0,0.00022167,2]
[366880753,1750545033251,-150.0,0.00022167,2]
[366880754,1750545033261,-150.74022538,0.00022167,2]
[366880755,1750545033271,-175.49724084,0.00022167,2]
[366880756,1750545033281,-157.09429814,0.00022167,2]
[366880757,1750545033290,-150.0,0.00022167,2]
[366880758,1750545033300,-176.03525365,0.00022167,2]
[366880759,1750545033311,-160.11922573,0.00022167,2]
[366880760,1750545033321,-151.91777302,0.00022167,2]
[366880761,1750545033331,-151.74606391,0.00022167,2]
[366880762,1750545033341,-234.7013167,0.00022167,2]
[366880763,1750545033351,-150.91365227,0.00022167,2]
[366880764,1750545033360,-151.35880312,0.00022167,2]
[366880765,1750545033371,-24505.71785575,0.00022258,2]
[366880766,1750545033381,-506.0,0.00022411,2]
[366880767,1750545033855,-200.0,0.00022449,2]
[366880768,1750545033868,-1034.79,0.00022468,2]
[366880769,1750545033878,-250.0,0.00022528,2]
[366880770,1750545033888,-164.28,0.00022584,2]
[366880771,1750545033899,-207.4,0.00022693,2]
[366880772,1750545033909,-2687.11847974,0.000228,7]
[366880773,1750545033919,-559.52,0.00022858,2]
[366880774,1750545033930,-559.52,0.00022864,2]
[366880775,1750545033940,-559.52,0.0002287,2]
[366880776,1750545033949,-559.52,0.00022876,2]
[366880777,1750545033959,-559.52,0.00022882,2]
[366880778,1750545033969,-559.52,0.00022888,2]
[366880779,1750545033978,-559.52,0.00022894,2]
[366880780,1750545033988,-559.52,0.000229,2]
[366880781,1750545033998,-296.86232448,0.000229,8]
[366880782,1750545034008,-559.52,0.00022906,2]
[366880783,1750545034018,-633.02,0.0002291,2]
[366880784,1750545034028,-559.52,0.00022912,2]
[366880785,1750545034038,-559.52,0.00022918,2]
[366880786,1750545034047,-160.85,0.0002292,2]
[366880787,1750545034057,-559.52,0.00022924,2]
[366880788,1750545034067,-559.52,0.0002293,2]
[366880789,1750545034076,-168.0,0.00022934,2]
[366880790,1750545034085,-559.52,0.00022936,2]
[366880791,1750545034094,-559.52,0.00022942,2]
[366880792,1750545034104,-559.52,0.00022948,2]
[366880793,1750545034114,-559.52,0.00022954,2]
[366880794,1750545034127,-666.0,0.00022957,2]
[366880795,1750545034141,-201.8,0.00022957,2]
[366880796,1750545034150,-559.52,0.0002296,2]
[366880797,1750545034161,-559.52,0.00022966,2]
[366880798,1750545034171,-559.52,0.00022972,2]
[366880799,1750545034183,-325.51,0.00023025,2]
[366880800,1750545034194,-296.86232421,0.00023072,8]
[366880801,1750545034205,-3665.2565679,0.00023141,2]
[366880837,1750545038181,-397.82881556,0.00023141,2]
[366880840,1750545038274,-566.0,0.00023141,2]
[366881048,1750545040312,-420.0,0.00023141,2]
[366881076,1750545040568,-1768.76461654,0.00023141,2]
[366881078,1750545040578,-202.0,0.00023172,4]
[366881080,1750545040588,-23900.0,0.00023184,2]
[366881082,1750545040597,-21166.30031234,0.000232,2]
[366881083,1750545040607,-151.0,0.00023231,2]
[366881084,1750545040616,-300.0,0.00023231,2]
[366881085,1750545040627,-300.0,0.00023231,2]
[366881086,1750545040637,-289.75289956,0.00023231,2]
[366881087,1750545040652,-668.65185757,0.00023231,2]
[366881088,1750545040672,-27418.04188956,0.00023245,2]
[366881090,1750545040687,-296.86232421,0.00023245,8]
[366881092,1750545040703,-150.0,0.00023288,2]
[366881095,1750545040721,-150.0,0.00023378,2]
[366881098,1750545040738,-912.62,0.00023378,2]
[366881100,1750545040751,-150.0,0.00023378,2]
[366881103,1750545040768,-168.0,0.00023403,2]
[366881106,1750545040785,-296.86232421,0.00023417,9]
[366881109,1750545040803,-1680.0,0.0002343,2]
[366881112,1750545040819,-40026.75188367,0.00023473,2]
[366881114,1750545040836,-254.82,0.00023512,2]
[366881117,1750545040852,-252.7,0.00023512,2]
[366881120,1750545040868,-252.73,0.00023514,2]
[366881123,1750545040884,-304.8,0.00023517,2]
[366881125,1750545040899,-302.02,0.00023521,2]
[366881127,1750545040911,-250.21,0.00023533,2]
[366881130,1750545040928,-4971.2739892,0.00023535,2]
[366881133,1750545040942,-253.03,0.00023568,2]
[366881135,1750545040953,-250.85,0.00023568,2]
[366881138,1750545040970,-296.86232421,0.0002359,9]
[366881140,1750545040983,-301.67,0.0002363,2]
[366881142,1750545040996,-461.95,0.00023644,2]
[366881146,1750545041017,-461.95,0.00023644,2]
[366881148,1750545041031,-265.33,0.00023644,2]
[366881151,1750545041045,-166.59,0.00023646,2]
[366881153,1750545041060,-461.95,0.00023699,2]
[366881156,1750545041074,-461.95,0.00023699,2]
[366881158,1750545041088,-500.0,0.000237,8]
[366881161,1750545041102,-1130.98948688,0.0002372,2]
[366881163,1750545041116,-296.86232421,0.00023762,9]
[366881165,1750545041133,-500.0,0.00023779,2]
[366881168,1750545041147,-250.0,0.00023779,2]
[366881171,1750545041161,-150.0,0.00023781,2]
[366881173,1750545041176,-300.0,0.00023781,2]
[366881175,1750545041190,-355.03,0.00023781,2]
[366881178,1750545041205,-170.94,0.00023781,2]
[366881181,1750545041219,-355.03,0.00023781,2]
[366881183,1750545041233,-170.94,0.00023781,2]
[366881186,1750545041247,-355.03,0.00023781,2]
[366881188,1750545041260,-150.0,0.00023781,2]
[366881190,1750545041274,-355.03,0.00023781,2]
[366881193,1750545041288,-170.94,0.00023781,2]
[366881195,1750545041301,-150.0,0.00023781,2]
[366881198,1750545041314,-150.0,0.00023781,2]
[366881200,1750545041329,-355.03,0.00023781,2]
[366881203,1750545041343,-355.03,0.00023781,2]
[366881205,1750545041357,-150.0,0.00023781,2]
[366881208,1750545041371,-355.03,0.00023781,2]
[366881210,1750545041385,-1100.0,0.000238,8]
[366881213,1750545041399,-163.58,0.00023808,2]
[366881215,1750545041413,-163.58,0.00023808,2]
[366881218,1750545041427,-163.58,0.00023808,2]
[366881220,1750545041441,-163.58,0.00023808,2]
[366881223,1750545041456,-239.84,0.00023836,2]
[366881225,1750545041470,-1005.0444175,0.00023857,2]
[366881228,1750545041484,-455.52,0.00023878,2]
[366881230,1750545041498,-150.0,0.00023878,2]
[366881233,1750545041512,-170.94,0.00023878,2]
[366881235,1750545041526,-163.58,0.00023878,2]
[366881238,1750545041540,-300.0,0.00023878,2]
[366881240,1750545041553,-150.0,0.00023878,2]
[366881243,1750545041567,-710.06,0.00023878,2]
[366881245,1750545041581,-150.0,0.00023878,2]
[366881247,1750545041595,-163.58,0.00023878,2]
[366881250,1750545041609,-170.94,0.00023878,2]
[366881252,1750545041623,-150.0,0.00023878,2]
[366881255,1750545041637,-455.52,0.00023878,2]
[366881257,1750545041651,-170.94,0.00023878,2]
[366881260,1750545041665,-150.0,0.00023878,2]
[366881262,1750545041680,-455.52,0.00023878,2]
[366881265,1750545041694,-163.58,0.00023878,2]
[366881267,1750545041707,-150.0,0.00023878,2]
[366881270,1750545041721,-150.0,0.00023878,2]
[366881272,1750545041736,-163.58,0.00023878,2]
[366881274,1750545041749,-455.52,0.00023878,2]
[366881277,1750545041763,-150.0,0.00023878,2]
[366881279,1750545041776,-163.58,0.00023878,2]
[366881282,1750545041790,-455.52,0.00023878,2]
[366881284,1750545041804,-150.0,0.00023878,2]
[366881287,1750545041817,-191.58318865,0.00023879,2]
[366881289,1750545041830,-297.29826845,0.00023899,2]
[366881292,1750545041843,-500.0,0.00023899,2]
[366881294,1750545041857,-500.0,0.00023899,2]
[366881296,1750545041870,-174.70325648,0.00023899,2]
[366881299,1750545041883,-500.0,0.00023899,2]
[366881301,1750545041897,-500.0,0.00023899,2]
[366881304,1750545041911,-500.0,0.00023899,2]
[366881306,1750545041924,-500.0,0.00023899,2]
[366881309,1750545041939,-605.20561321,0.00023899,2]
[366881311,1750545041954,-500.0,0.00023899,2]
[366881314,1750545041966,-500.0,0.00023899,2]
[366881316,1750545041980,-500.0,0.00023899,2]
[366881318,1750545041994,-313.82807455,0.00023899,2]
[366881321,1750545042008,-500.0,0.00023899,2]
[366881324,1750545042023,-467.26685144,0.00023899,2]
[366881326,1750545042036,-526.22272622,0.00023899,2]
[366881329,1750545042050,-34736.12924068,0.000239,3]
[366881331,1750545042067,-1099.99,0.000239,3]
[366881334,1750545042084,-285.62569292,0.000239,3]
[366881337,1750545042100,-1953.62450936,0.000239,3]
[366881344,1750545042159,-1420.54374346,0.000239,3]
[366881444,1750545043150,-500.0,0.00023899,2]
[366881447,1750545043159,-500.0,0.00023899,2]
[366881449,1750545043170,-529.50382304,0.00023899,2]
[366881451,1750545043181,-310.76983866,0.00023899,2]
[366881453,1750545043190,-6571.83019752,0.000239,3]
[366881455,1750545043202,-359.4,0.000239,3]
[366881610,1750545044648,-355.03,0.00023781,2]
[366881612,1750545044658,-163.58,0.00023808,2]
[366881614,1750545044667,-779.00853,0.000239,3]
[366881621,1750545044803,-10611.9057653,0.000239,3]
[366881758,1750545046067,-1812.51836045,0.000239,3]
[366881760,1750545046079,-35734.68565265,0.000239,3]
[366881763,1750545046096,-153391.52957141,0.000239,3]
[366881776,1750545046217,-408.30563646,0.000239,3]
[366881778,1750545046228,-842505.32008237,0.000239,3]
[366881791,1750545046335,-856.36107788,0.000239,3]
[366881794,1750545046347,-277.97063424,0.000239,3]
[366881796,1750545046359,-6614.55329603,0.000239,3]
[366882055,1750545159723,310.56338028,0.00020002,4]
[366882056,1750545163007,502.0,0.00020002,4]
[366882057,1750545168382,407.46268657,0.00020002,3]
[366882060,1750545612445,202.0,0.00019856,2]
[366882064,1750545763446,202.0,0.00019856,2]
[366882065,1750545813165,250.0,0.00015,2]
[366882066,1750545911435,200.0,0.00019856,2]
[366882491,1750545956767,157.82,0.00013699,2]
[366882647,1750546238194,-202.0,0.00020241,2]
[366882648,1750546238204,-202.0,0.00021661,4]
[366882649,1750546238218,-218.39712195,0.00021759,2]
[366882650,1750546238230,-149.13287805,0.00021759,2]
[366882651,1750546238240,-1200.0,0.00021812,2]
[366882652,1750546238250,-590.89048191,0.00021813,2]
[366882653,1750546238484,-7906.01765501,0.00021813,2]
[366882654,1750546238566,-8113.30231727,0.00021813,2]
[366882655,1750546238592,-5649.28945017,0.00021813,2]
[366882657,1750546238606,-1640.50009564,0.00021813,2]
[366882659,1750546238615,-247.67,0.00021857,2]
[366882660,1750546238625,-248.79,0.00021857,2]
[366882661,1750546238635,-250.88,0.00021857,2]
[366882662,1750546238646,-129.95990436,0.00021857,2]
[366882663,1750546238666,-171.00009564,0.00021857,2]
[366882664,1750546238676,-251.34,0.00021857,2]
[366882665,1750546238686,-251.8,0.00021857,2]
[366882666,1750546238695,-302.17,0.00021857,2]
[366882667,1750546238704,-302.91,0.00021857,2]
[366882668,1750546238716,-304.05,0.00021857,2]
[366882669,1750546238725,-246.48,0.00021859,2]
[366882670,1750546238735,-252.39,0.00021859,2]
[366882671,1750546238745,-163.26949937,0.00021859,2]
[366882672,1750546238871,-87.02050063,0.00021859,2]
[366882673,1750546238880,-302.0,0.00021861,2]
[366882674,1750546238890,-248.88,0.00021862,2]
[366882675,1750546238900,-252.02,0.00021862,2]
[366882676,1750546238909,-302.49,0.00021868,2]
[366882677,1750546238919,-250.0,0.00021877,2]
[366882678,1750546238928,-300.0,0.00021886,2]
[366882679,1750546238937,-254.06,0.00021887,2]
[366882680,1750546238947,-251.21,0.00021887,2]
[366882681,1750546238959,-43.00789937,0.00021909,2]
[366882690,1750546240431,-217.39210063,0.00021909,2]
[366882691,1750546240442,-282.60536897,0.00021917,2]
[366882692,1750546240454,-19.37463103,0.00021917,2]
[366882693,1750546240465,-304.2,0.00021917,2]
[366882694,1750546240474,-1298.73,0.00021929,2]
[366882695,1750546240485,-742.32,0.0002194,2]
[366882696,1750546240494,-666.0,0.00021955,2]
[366882697,1750546240514,-246.71,0.00022009,2]
[366882698,1750546240525,-251.71,0.00022009,2]
[366882699,1750546240535,-160.85,0.00022038,2]
[366882700,1750546240545,-304.49,0.00022161,2]
[366882701,1750546240556,-250.64730642,0.00022167,2]
[366882702,1750546240570,-154.0484503,0.00022167,2]
[366882703,1750546240580,-185.32035242,0.00022167,2]
[366882704,1750546240591,-210.29025057,0.00022167,2]
[366882705,1750546240601,-169.24140994,0.00022167,2]
[366882706,1750546240612,-386.41823916,0.00022226,2]
[366882707,1750546240622,-157.82,0.00022505,2]
[366882708,1750546240632,-1000.0,0.00022536,2]
[366882709,1750546240643,-500.0,0.00022552,2]
[366882710,1750546240655,-383.70612353,0.00022693,2]
[366882711,1750546240665,-151.0,0.00022693,2]
[366882712,1750546240675,-207.4,0.00022693,2]
[366882713,1750546240686,-150.0,0.00022699,2]
[366882714,1750546240696,-237.4898596,0.000229,8]
[366882715,1750546240706,-158.38,0.00022959,2]
[366882716,1750546240719,-3761.5638173,0.00023,2]
[366882717,1750546240728,-461.95,0.00023041,2]
[366882718,1750546240738,-237.48985936,0.00023072,8]
[366882719,1750546240748,-163.58,0.00023078,2]
[366882720,1750546240758,-202.0,0.00023081,6]
[366882721,1750546240768,-247.62,0.00023141,2]
[366882722,1750546240778,-248.27,0.00023141,2]
[366882723,1750546240788,-150.0,0.00023178,2]
[366882724,1750546240798,-163.58,0.00023178,2]
[366882725,1750546240808,-355.03,0.00023178,2]
[366882726,1750546240817,-150.0,0.00023178,2]
[366882727,1750546240827,-177.59,0.00023205,2]
[366882728,1750546240837,-237.48985936,0.00023245,8]
[366882729,1750546240847,-170.94,0.00023288,2]
[366882730,1750546240856,-455.52,0.00023288,2]
[366882731,1750546240867,-455.52,0.00023288,2]
[366882732,1750546240877,-455.52,0.00023288,2]
[366882733,1750546240887,-709.66,0.00023288,2]
[366882734,1750546240897,-454.96,0.00023288,2]
[366882735,1750546240907,-171.98,0.00023288,2]
[366882736,1750546240917,-170.94,0.00023288,2]
[366882737,1750546240927,-170.94,0.00023288,2]
[366882738,1750546240938,-237.48985936,0.00023417,9]
[366882739,1750546240948,-398.97548611,0.0002346,2]
[366882740,1750546240960,-107873.2274137,0.000235,2]
[366882741,1750546240971,-12376.56351648,0.00023543,2]
[366882742,1750546240984,-480.71349133,0.00023543,2]
[366882743,1750546241004,-2744.04557471,0.00023543,2]
[366882744,1750546241045,-14409.90256344,0.00023543,2]
[366882745,1750546241263,-1269.7108113,0.00023543,2]
[366882746,1750546241275,-14259.3298734,0.00023543,2]
[366882747,1750546241413,-21360.91083186,0.00023543,2]
[366882748,1750546241424,-16347.67994187,0.00023544,2]
[366882749,1750546241434,-12077.0920334,0.00023544,2]
[366882750,1750546241446,-1559.71277516,0.00023544,2]
[366882751,1750546241459,-934.33642149,0.00023544,2]
[366882752,1750546241471,-419.77238971,0.00023544,2]
[366882753,1750546241485,-27205.05392186,0.00023544,2]
[366882754,1750546241499,-2672.4,0.00023544,2]
[366882765,1750546243342,-202.0,0.00020241,2]
[366882766,1750546243352,-170.94,0.00023288,2]
[366882767,1750546243362,-216.34608402,0.00023544,2]
[366882768,1750546243374,-71000.15440906,0.00023544,2]
[366882769,1750546243408,-682.07017237,0.00023544,2]
[366882770,1750546243421,-657.58850979,0.00023544,2]
[366882771,1750546243432,-4686.43454404,0.00023544,2]
[366882777,1750546243736,-825.05551,0.00023544,2]
[366882778,1750546243748,-634.55902657,0.00023544,2]
[366882779,1750546243760,-1059.8588,0.00023544,2]
[366882780,1750546243772,-11721.205,0.00023544,2]
[366882786,1750546246529,-398.97548592,0.00023517,2]
[366882787,1750546246539,-3622.76171448,0.00023544,2]
[366882788,1750546246551,-473.66435226,0.00023544,2]
[366882791,1750546333342,202.0,0.00019241,2]
[366882792,1750546445173,1000.0,0.00019939,2]
[366882793,1750546691986,202.0,0.00019646,2]
[366882794,1750546798597,415.38461538,0.00020002,3]
[366882795,1750546855671,348.58931778,0.00020002,3]
[366882867,1750547412693,202.0,0.00019087,2]
[366882881,1750547432402,-202.0,0.00020603,4]
[366882882,1750547432413,-551.95365297,0.00021391,2]
[366882883,1750547432423,-510.0,0.00021479,2]
[366882884,1750547432433,-200.0,0.00021602,2]
[366882885,1750547432443,-400.0,0.00021606,2]
[366882886,1750547432453,-1000.0,0.00021722,2]
[366882887,1750547432463,-300.0,0.0002186,2]
[366882888,1750547432474,-1200.0,0.0002186,2]
[366882889,1750547432484,-247.89,0.0002186,2]
[366882890,1750547432494,-211.49444078,0.00021861,2]
[366882891,1750547432507,-93.51555922,0.00021861,2]
[366882892,1750547432517,-251.72,0.00021861,2]
[366882893,1750547432527,-248.98,0.00021861,2]
[366882894,1750547432787,-246.81,0.00021861,2]
[366882895,1750547432810,-300.57,0.00021861,2]
[366882896,1750547432820,-252.26,0.00021861,2]
[366882897,1750547432830,-252.21,0.00021861,2]
[366882898,1750547432840,-301.28,0.00021861,2]
[366882899,1750547432850,-1000.0,0.00021905,2]
[366882900,1750547432859,-150.0,0.00022001,2]
[366882901,1750547432868,-666.0,0.00022008,2]
[366882902,1750547432878,-151.0,0.00022013,2]
[366882903,1750547432887,-23900.0,0.00022027,2]
[366882904,1750547432897,-150.0,0.00022028,2]
[366882905,1750547432907,-151.0,0.00022068,2]
[366882906,1750547432916,-250.0,0.00022104,2]
[366882907,1750547432926,-202.0,0.00022118,6]
[366882908,1750547432935,-151.0,0.00022123,2]
[366882909,1750547432951,-371.16,0.00022145,2]
[366882910,1750547432960,-163.08,0.00022163,2]
[366882911,1750547432971,-150.0,0.00022167,2]
[366882912,1750547432981,-150.0,0.00022167,2]
[366882913,1750547432994,-150.0,0.00022167,2]
[366882914,1750547433004,-150.0,0.00022167,2]
[366882915,1750547433014,-150.0,0.00022167,2]
[366882916,1750547433026,-150.0,0.00022167,2]
[366882917,1750547433036,-150.0,0.00022167,2]
[366882918,1750547433047,-150.0,0.00022167,2]
[366882919,1750547433057,-301.69346504,0.00022178,2]
[366882920,1750547433067,-1000.0,0.00022201,2]
[366882921,1750547433077,-160.85,0.00022211,2]
[366882922,1750547433087,-150.0,0.00022299,2]
[366882923,1750547433097,-150.0,0.00022315,2]
[366882924,1750547433107,-150.0,0.00022316,2]
[366882925,1750547433116,-150.0,0.00022318,2]
[366882926,1750547433126,-150.0,0.00022365,2]
[366882927,1750547433136,-150.0,0.00022373,2]
[366882928,1750547433146,-1000.0,0.00022385,2]
[366882929,1750547433156,-711.61542913,0.00022388,2]
[366882930,1750547433180,-288.38457087,0.00022388,2]
[366882931,1750547433191,-150.0,0.00022391,4]
[366882932,1750547433200,-150.0,0.00022413,4]
[366882933,1750547433210,-150.0,0.00022452,2]
[366882934,1750547433220,-150.0,0.00022458,2]
[366882935,1750547433230,-150.0,0.00022508,2]
[366882936,1750547433240,-150.0,0.00022531,2]
[366882937,1750547433250,-150.0,0.00022578,4]
[366882938,1750547433260,-271.06,0.00022603,2]
[366882939,1750547433270,-150.0,0.00022615,4]
[366882940,1750547433280,-439.45030561,0.00022626,2]
[366882941,1750547433955,-491.23384,0.00022626,2]
[366882942,1750547433996,-69.31585439,0.00022626,2]
[366882943,1750547434006,-150.0,0.00022627,2]
[366882944,1750547434015,-150.0,0.00022635,2]
[366882945,1750547434026,-250.0,0.00022647,2]
[366882946,1750547434036,-1000.0,0.00022648,2]
[366882947,1750547434046,-150.0,0.0002266,4]
[366882948,1750547434055,-150.0,0.0002266,4]
[366882949,1750547434065,-1351.60483184,0.000227,2]
[366882950,1750547434074,-1028.0,0.000227,2]
[366882951,1750547434083,-250.0,0.00022711,2]
[366882952,1750547434093,-150.0,0.0002273,2]
[366882953,1750547434103,-167.25,0.00022734,2]
[366882954,1750547434113,-150.0,0.00022737,2]
[366882955,1750547434123,-1595.62,0.00022741,2]
[366882956,1750547434133,-150.0,0.00022757,2]
[366882957,1750547434143,-210.75548432,0.00022814,2]
[366882958,1750547434152,-150.0,0.00022839,4]
[366882959,1750547434161,-168.0,0.00022842,2]
[366882960,1750547434171,-150.0,0.00022848,2]
[366882961,1750547434181,-150.0,0.00022856,2]
[366882962,1750547434191,-150.0,0.00022867,2]
[366882963,1750547434201,-1033.21,0.00022877,2]
[366882964,1750547434211,-798.09,0.00022877,2]
[366882965,1750547434221,-923.24,0.00022877,2]
[366882966,1750547434231,-798.09,0.00022877,2]
[366882967,1750547434241,-798.09,0.00022877,2]
[366882968,1750547434251,-798.09,0.00022877,2]
[366882969,1750547434260,-798.09,0.00022877,2]
[366882970,1750547434270,-1635.78,0.00022877,2]
[366882971,1750547434280,-150.91,0.00022878,2]
[366882972,1750547434290,-170.94,0.00022878,2]
[366882973,1750547434299,-384.11,0.00022878,2]
[366882974,1750547434314,-150.0,0.00022891,2]
[366882975,1750547434324,-282.58759142,0.000229,8]
[366882976,1750547434334,-163.58,0.00022902,2]
[366882977,1750547434344,-163.58,0.00022902,2]
[366882978,1750547434353,-163.58,0.00022902,2]
[366882979,1750547434363,-150.0,0.00022906,4]
[366882980,1750547434372,-150.0,0.00022913,2]
[366882981,1750547434382,-150.0,0.00022924,2]
[366882982,1750547434392,-150.0,0.0002293,2]
[366882983,1750547434402,-355.03,0.00022943,2]
[366882984,1750547434411,-150.0,0.0002296,2]
[366882985,1750547434422,-170.64,0.00022978,2]
[366882986,1750547434431,-163.58,0.00022978,2]
[366882987,1750547434442,-207.4,0.00022983,2]
[366882988,1750547434453,-1957.856,0.00022983,2]
[366882989,1750547434462,-151.0,0.00022983,2]
[366882990,1750547434473,-150.0,0.00022988,4]
[366882991,1750547434483,-969.29,0.0002299,2]
[366882992,1750547434493,-969.29,0.0002299,2]
[366882993,1750547434503,-4049.49661583,0.00023,2]
[366882994,1750547434515,-416.85355078,0.00023,2]
[366882995,1750547434527,-671.53326557,0.00023,2]
[366882996,1750547434575,-2277.1,0.00023,2]
[366882997,1750547434586,-1582.34629659,0.00023,2]
[366882998,1750547434598,-875.50319004,0.00023,2]
[366883006,1750547438368,-371.74726613,0.00022999,2]
[366883008,1750547438378,-557.95071276,0.00022999,2]
[366883010,1750547438388,-452.86839795,0.00022999,2]
[366883011,1750547438444,-98.1094663,0.00022999,2]
[366883012,1750547438454,-500.0,0.00022999,2]
[366883013,1750547438465,-500.0,0.00022999,2]
[366883014,1750547438476,-256.87475723,0.00022999,2]
[366883015,1750547438486,-500.0,0.00022999,2]
[366883016,1750547438496,-493.30403744,0.00022999,2]
[366883017,1750547438506,-24976.81992159,0.00023,2]
[366883018,1750547438676,-3357.2842326,0.00023,2]
[366883021,1750547438689,-3799.93045815,0.00023,2]
[366883023,1750547438701,-7644.99507404,0.00023,2]
[366883063,1750547440638,-254.55201074,0.00023,2]
[366883064,1750547440650,-5096.5,0.00023,2]
[366883065,1750547440838,-1857.37858122,0.00023,2]
[366883066,1750547440851,-254.13347588,0.00023,2]
[366883067,1750547440900,-30867.15071291,0.00023,2]
[366883102,1750547443647,-1497.79360001,0.00023,2]
[366883105,1750547443661,-456.36326993,0.00023,2]
[366883107,1750547443674,-903.0,0.00023,2]
[366883109,1750547443686,-564.56,0.00023,2]
[366883111,1750547443697,-6066.02399039,0.00023,2]
[366883144,1750547446408,-490.0,0.00023,2]
[366883145,1750547446419,-4813.46560064,0.00023,2]
[366883146,1750547446430,-857.14374395,0.00023,2]
[366883158,1750547471648,201.0,0.00019087,2]
[366883159,1750547516675,490.0,0.00020002,4]
[366883161,1750547780960,158.16,0.00013699,2]
[366883192,1750548631856,-202.0,0.00020633,2]
[366883193,1750548631866,-1200.0,0.00020839,2]
[366883194,1750548631876,-76.37773816,0.0002084,2]
[366883195,1750548631906,-223.62226184,0.0002084,2]
[366883196,1750548631916,-193.87430583,0.0002084,2]
[366883197,1750548631954,-106.12569417,0.0002084,2]
[366883198,1750548631964,-305.15,0.00020841,2]
[366883199,1750548631974,-302.03,0.00020841,2]
[366883200,1750548631983,-304.06,0.00020841,2]
[366883201,1750548631993,-301.03,0.00020841,2]
[366883202,1750548632003,-304.42,0.00020841,2]
[366883203,1750548632013,-305.17,0.00020841,2]
[366883204,1750548632025,-301.56,0.00020841,2]
[366883206,1750548632035,-303.12,0.00020841,2]
[366883208,1750548632044,-301.88,0.00020841,2]